[Event "21st Dubai Open 2019"]
[Site "Dubai"]
[Date "2019.04.08"]
[Round "8.32"]
[White "Saurabh Anand"]
[Black "Chekh Adm Khedr, Aram"]
[Result "1/2-1/2"]
[ECO "C45"]
[WhiteElo "2385"]
[BlackElo "2146"]
[Annotator "NA"]
[PlyCount "66"]
[EventDate "2019.04.01"]
[EventType "swiss"]
[EventCountry "UAE"]
[SourceTitle "playchess.com"]
[Source "ChessBase"]
[SourceQuality "1"]
[TimeControl "5400+30"]

1. e4 {[%emt 0:00:00]} e5 {[%emt 0:02:46]} 2. Nf3 {[%emt 0:00:00]} Nc6 {[%emt 0:00:05]} 3. d4 {[%emt 0:00:33]} exd4 {[%emt 0:01:39]} 4. Nxd4 {[%emt 0:00:13]} Nf6 {[%emt 0:01:52]} 5. Nxc6 {[%emt 0:00:12]} bxc6 {[%emt 0:00:04]} 6. e5 {[%emt 0:00:10]} Qe7 {[%emt 0:00:05]} 7. Qe2 {[%emt 0:00:07]} Nd5 {[%emt 0:00:05]} 8. c4 {[%emt 0:00:09]} Ba6 {[%emt 0:00:05]} 9. Nd2 {[%emt 0:00:13]} g6 {[%emt 0:12:13]} 10. Nf3 {[%emt 0:02:23] C45: Scotch Game} Bg7 {[%emt 0:01:45]} (10... Qb4+ 11. Kd1 Ne7 12. Bg5 Bg7 13. Qd2 c5 14. Qxb4 cxb4 15. Bd3 h6 16. Bxe7 Kxe7 17. Re1 Rhe8 {1-0 (52) Huschenbeth,N (2586)-Anton Guijarro,D (2649) Germany 2019}) 11. Bg5 {[%emt 0:00:57]} Qb4+ {[%emt 0:02:01]} 12. Qd2 {[%emt 0:09:14]} Qxd2+ {[%emt 0:01:18]} 13. Kxd2 {[%emt 0:00:19]} Nb6 {[%emt 0:00:20]} 14. c5 {[%emt 0:03:46]} Bxf1 {[%emt 0:01:03]} 15. Rhxf1 {[%emt 0:00:05]} Nd5 {[%emt 0:05:06]} 16. Rac1 {[%emt 0:00:35]} Rb8 {[%emt 0:01:00]} 17. b3 {[%emt 0:00:18]} O-O {[%emt 0:02:12]} 18. Rc4 $146 {[%emt 0:01:20]} Rfe8 {[%emt 0:04:44]} 19. Re1 {[%emt 0:01:00]} a5 {[%emt 0:05:23]} 20. Re2 {[%emt 0:17:37]} h6 {[%emt 0:08:19]} 21. Bh4 {[%emt 0:03:03]} Rb4 {[%emt 0:00:49]} 22. Bg3 {[%emt 0:03:32]} Reb8 $15 {[%emt 0:08:39]} 23. Ree4 {[%emt 0:00:16]} Re8 {[%emt 0:00:44]} 24. Re2 {[%emt 0:00:04]} Reb8 {[%emt 0:00:03]} 25. Ree4 {[%emt 0:00:07]} Re8 {[%emt 0:00:07]} 26. Re2 {[%emt 0:00:04]} Reb8 {[%emt 0:00:05]} 27. Bh4 Re8 28. Bg3 Reb8 29. Ree4 Re8 30. Re2 Reb8 31. Ree4 Re8 32. Re2 Rxc4 33. bxc4 Nb4 1/2-1/2

[Event "21st Dubai Open 2019"]
[Site "Dubai"]
[Date "2019.04.08"]
[Round "8.33"]
[White "Assaubayeva, Bibisara"]
[Black "Sri Sai Baswanth P"]
[Result "1-0"]
[ECO "A61"]
[WhiteElo "2381"]
[BlackElo "2018"]
[Annotator "NA"]
[PlyCount "105"]
[EventDate "2019.04.01"]
[EventType "swiss"]
[EventCountry "UAE"]
[SourceTitle "playchess.com"]
[Source "ChessBase"]
[SourceQuality "1"]
[TimeControl "5400+30"]

1. d4 Nf6 {[%emt 0:05:00]} 2. c4 {[%emt 0:00:19]} c5 {[%emt 0:00:08]} 3. d5 {[%emt 0:00:06]} e6 {[%emt 0:00:08]} 4. Nc3 {[%emt 0:00:07]} exd5 {[%emt 0:00:09]} 5. cxd5 {[%emt 0:00:05]} d6 {[%emt 0:00:03]} 6. Nf3 {[%emt 0:00:09]} g6 {[%emt 0:00:05]} 7. Bf4 {[%emt 0:00:09]} a6 {[%emt 0:01:08]} 8. a4 {[%emt 0:02:08]} Bg7 {[%emt 0:00:51]} 9. h3 {[%emt 0:00:10]} O-O {[%emt 0:00:36]} 10. e3 {[%emt 0:00:08]} Ne8 {[%emt 0:05:50] A61: Modern Benoni: Nf3 without early e4} (10... Qe7 11. Bd3 Nbd7 12. O-O Ne8 13. e4 Rb8 14. Re1 Nc7 15. Qd2 Ne5 16. Nxe5 Bxe5 17. Bxe5 Qxe5 18. a5 {1-0 (42) Akobian,V (2647)-Ponkratov,P (2613) Riadh 2017}) 11. Be2 {[%emt 0:01:57]} Nd7 {[%emt 0:00:14]} 12. O-O {[%emt 0:01:30]} Ne5 {[%emt 0:01:59]} 13. Nd2 {[%emt 0:04:18]} f5 {[%emt 0:10:09]} 14. Bh2 {[%emt 0:01:38]} Bd7 {[%emt 0:03:05]} 15. a5 $146 {[%emt 0:05:03]} ({Predecessor:} 15. f4 Nf7 16. e4 fxe4 17. Ndxe4 Nc7 18. Bg4 {½-½ (85) Muradli,M (2334)-Tutisani,N (2383) Batumi 2017}) 15... Bb5 {[%emt 0:07:26]} 16. Qb3 {[%emt 0:06:16]} Bxe2 {[%emt 0:03:58]} 17. Nxe2 {[%emt 0:01:28]} Rb8 {[%emt 0:02:53]} 18. Bxe5 {[%emt 0:07:26]} Bxe5 {[%emt 0:03:18]} 19. Nc4 {[%emt 0:01:35]} Qe7 $14 {[%emt 0:03:26]} 20. Rad1 {[%emt 0:05:36]} Nc7 {[%emt 0:05:04]} 21. Nc3 {[%emt 0:02:53]} Rfe8 {[%emt 0:10:39]} 22. Rfe1 {[%emt 0:07:50]} h6 {[%emt 0:05:09]} 23. Nxe5 {[%emt 0:10:46]} Qxe5 {[%emt 0:00:11]} 24. f4 {[%emt 0:01:42]} Qf6 {[%emt 0:01:03]} 25. e4 {[%emt 0:09:55]} fxe4 {[%emt 0:01:16]} 26. Nxe4 {[%emt 0:02:31]} Qxf4 {[%emt 0:00:18]} 27. Qd3 {[%emt 0:00:50]} Nb5 {[%emt 0:10:04]} 28. Re3 {[%emt 0:03:46]} Kg7 {[%emt 0:02:28]} 29. Kh1 {[%emt 0:04:01]} Rf8 {[%emt 0:01:23]} 30. Rg3 {[%emt 0:04:54]} Qf5 {[%emt 0:02:31]} 31. Rf3 {[%emt 0:04:19]} Qe5 {[%emt 0:00:07]} 32. Rg3 {[%emt 0:00:26]} Rf5 {[%emt 0:01:15]} 33. Re3 {[%emt 0:03:54]} Qxb2 {[%emt 0:08:35]} 34. Ng3 {[%emt 0:03:24]} Re5 {[%emt 0:01:31]} 35. Rf3 {[%emt 0:00:17]} Nd4 {[%emt 0:00:44]} 36. Rf4 {[%emt 0:00:42]} Ne2 {[%emt 0:02:36]} 37. Rf2 {[%emt 0:00:49]} Rbe8 {[%emt 0:01:29]} 38. Rdf1 {[%emt 0:01:20]} R8e7 {[%emt 0:01:05]} 39. Rf6 {[%emt 0:02:18]} Nxg3+ {[%emt 0:00:55]} 40. Qxg3 {[%emt 0:00:02]} Rg5 {[%emt 0:00:07]} 41. Qf3 {[%emt 0:00:03]} Qe5 {[%emt 0:00:42]} 42. Re6 {[%emt 0:01:27]} Rf5 {[%emt 0:00:49]} 43. Rxe5 {[%emt 0:00:10]} Rexe5 {[%emt 0:00:04]} 44. Qd1 {[%emt 0:00:08]} Rxd5 {[%emt 0:00:11]} 45. Qa1+ {[%emt 0:00:07]} Kh7 {[%emt 0:00:31]} 46. g4 {[%emt 0:00:52]} Rxf1+ 47. Qxf1 {[%emt 0:00:01]} Kg7 {[%emt 0:00:29]} 48. Qf3 {[%emt 0:00:06]} Rd4 {[%emt 0:00:14]} 49. Qxb7+ {[%emt 0:00:07]} Kf6 {[%emt 0:00:02]} 50. Qxa6 {[%emt 0:00:13]} c4 {[%emt 0:00:13]} 51. Qc6 {[%emt 0:00:14]} Kg5 {[%emt 0:00:11]} 52. a6 {[%emt 0:00:23]} Kh4 {[%emt 0:00:30]} 53. a7 {[%emt 0:00:37]} 1-0

[Event "21st Dubai Open 2019"]
[Site "Dubai"]
[Date "2019.04.08"]
[Round "8.34"]
[White "Rathnakaran, K.."]
[Black "San Diego, Jerlyn Mae"]
[Result "1/2-1/2"]
[ECO "B27"]
[WhiteElo "2351"]
[BlackElo "1836"]
[Annotator "NA"]
[PlyCount "104"]
[EventDate "2019.04.01"]
[EventType "swiss"]
[EventCountry "UAE"]
[SourceTitle "playchess.com"]
[Source "ChessBase"]
[SourceQuality "1"]
[TimeControl "5400+30"]

1. e4 {[%emt 0:00:00]} c5 {[%emt 0:00:00]} 2. Nf3 {[%emt 0:00:00]} g6 {[%emt 0:00:00]} 3. h4 {[%emt 0:00:00]} h5 {[%emt 0:02:34]} (3... h6 4. Bc4 Nc6 5. d3 Bg7 6. Nc3 a6 7. a3 e6 8. Ba2 Nge7 9. Bf4 d6 10. Qd2 b5 11. Nd1 {0-1 (57) Moussard,J (2605)-Lagarde,M (2604) chess.com INT 2019}) 4. c3 {[%emt 0:00:00]} Bg7 {[%emt 0:00:20]} 5. d4 {[%emt 0:00:00]} cxd4 {[%emt 0:00:21]} 6. cxd4 {[%emt 0:00:00] B27: Sicilian: 2 Nf3, unusual Black 2nd moves} d5 {[%emt 0:00:11]} 7. e5 {[%emt 0:00:08]} Nc6 {[%emt 0:00:35]} 8. Nc3 {[%emt 0:00:04]} Bg4 {[%emt 0:02:15]} 9. Qb3 $146 {[%emt 0:01:05]} ({Predecessor:} 9. Be3 Qd7 10. Be2 Nh6 11. Qb3 Rd8 12. Ng5 {½-½ (48) Blit,J (2337)-Lupis,F (1983) Villa Martelli 2014}) 9... Bxf3 {[%emt 0:01:16]} 10. gxf3 {[%emt 0:00:04]} Nxd4 {[%emt 0:00:41]} 11. Qa4+ {[%emt 0:00:19]} Nc6 {[%emt 0:00:16]} 12. e6 {[%emt 0:00:05]} fxe6 {[%emt 0:06:12]} 13. Bd3 {[%emt 0:00:27]} Qa5 {[%emt 0:05:12]} 14. Bxg6+ {[%emt 0:00:08]} Kd7 {[%emt 0:00:35]} 15. Qxa5 {[%emt 0:04:03]} Nxa5 {[%emt 0:00:08]} 16. Ne2 {[%emt 0:00:03]} Nc6 {[%emt 0:13:47]} 17. Ng3 {[%emt 0:00:21]} Nf6 {[%emt 0:00:49]} 18. f4 {[%emt 0:02:09]} e5 {[%emt 0:03:33]} 19. f5 {[%emt 0:00:18]} Nd4 {[%emt 0:00:33]} 20. Kd1 {[%emt 0:01:21]} Rac8 {[%emt 0:02:33]} 21. Rf1 {[%emt 0:06:32]} (21. Be3 $142) 21... Nf3 {[%emt 0:01:53]} 22. Bg5 {[%emt 0:02:47]} Rc4 {[%emt 0:02:24]} 23. Bxf6 {[%emt 0:12:50]} Bxf6 {[%emt 0:00:46]} 24. Bxh5 {[%emt 0:00:06]} Nxh4 {[%emt 0:00:32]} 25. Bf7 {[%emt 0:01:10]} Kd6 {[%emt 0:02:34]} 26. b3 {[%emt 0:00:28]} Rd4+ {[%emt 0:00:27]} 27. Ke2 {[%emt 0:00:35]} Ng2 {[%emt 0:04:12]} 28. Rad1 {[%emt 0:01:01]} Nf4+ {[%emt 0:00:54]} 29. Kf3 {[%emt 0:02:14]} Rxd1 {[%emt 0:03:39]} 30. Rxd1 {[%emt 0:02:31]} Rf8 {[%emt 0:01:09] [#]} 31. Bxd5 $1 {[%emt 0:00:16]} Nxd5 {[%emt 0:04:58]} 32. Ke4 {[%emt 0:00:04]} e6 {[%emt 0:00:22]} 33. fxe6 {[%emt 0:00:05]} Kxe6 {[%emt 0:02:05]} 34. Rxd5 {[%emt 0:00:07]} Rc8 {[%emt 0:06:52]} 35. Rd2 {[%emt 0:07:26]} Bg5 {[%emt 0:03:55]} 36. Re2 {[%emt 0:00:10]} b5 {[%emt 0:03:12]} 37. Nf5 {[%emt 0:02:53]} a5 {[%emt 0:03:06]} 38. Ne3 {[%emt 0:02:48]} Bxe3 {[%emt 0:05:29]} 39. fxe3 {[%emt 0:00:17]} a4 $11 {[%emt 0:01:21]} 40. Rh2 {[%emt 0:00:37]} axb3 {[%emt 0:01:21]} 41. axb3 {[%emt 0:00:05]} Rc3 {[%emt 0:00:50]} 42. Rh6+ {[%emt 0:00:16]} Kd7 {[%emt 0:00:46]} 43. b4 {[%emt 0:00:14]} Rc4+ {[%emt 0:00:51]} 44. Kxe5 {[%emt 0:00:08]} Rxb4 {[%emt 0:00:04]} 45. Rh7+ {[%emt 0:00:44]} Kc6 {[%emt 0:00:36]} 46. e4 {[%emt 0:00:17]} Rb1 {[%emt 0:00:20]} 47. Rh8 {[%emt 0:00:22]} b4 {[%emt 0:00:45]} 48. Rb8 {[%emt 0:01:46]} Kc5 {[%emt 0:01:47]} 49. Rc8+ {[%emt 0:01:15]} Kb5 {[%emt 0:00:15]} 50. Rb8+ {[%emt 0:00:28]} Kc5 {[%emt 0:01:53]} 51. Rc8+ {[%emt 0:00:07]} Kb5 {[%emt 0:00:10]} 52. Rb8+ {[%emt 0:00:05]} Kc5 {[%emt 0:00:07]} 1/2-1/2

[Event "21st Dubai Open 2019"]
[Site "Dubai"]
[Date "2019.04.08"]
[Round "8.35"]
[White "Venkatesh, M.R."]
[Black "Mohannad, Farhan"]
[Result "1/2-1/2"]
[ECO "B06"]
[WhiteElo "2517"]
[BlackElo "2183"]
[Annotator "ChessBase"]
[PlyCount "81"]
[EventDate "2019.04.01"]
[EventType "swiss"]
[EventCountry "UAE"]
[SourceTitle "playchess.com"]
[Source "ChessBase"]
[SourceQuality "1"]
[TimeControl "5400+30"]

1. e4 {[%emt 0:00:00]} g6 {[%emt 0:00:00]} 2. d4 {[%emt 0:00:00]} Bg7 {[%emt 0:00:07]} 3. Nc3 {[%emt 0:00:10]} d6 {[%emt 0:00:06]} 4. Be3 {[%emt 0:00:29]} Nf6 {[%emt 0:00:14]} 5. Nf3 {[%emt 0:01:11]} O-O {[%emt 0:00:14]} 6. Qd2 {[%emt 0:01:41]} c6 {[%emt 0:00:13]} 7. Bd3 {[%emt 0:00:38]} Qc7 {[%emt 0:00:16]} 8. Bh6 {[%emt 0:00:40]} e5 {[%emt 0:00:31]} 9. dxe5 {[%emt 0:00:50]} dxe5 {[%emt 0:00:05]} 10. Ne2 {[%emt 0:01:17]} Nbd7 {[%emt 0:01:50]} 11. Ng3 {[%emt 0:04:04]} Nc5 {[%emt 0:03:15]} 12. Bxg7 {[%emt 0:04:02]} Kxg7 {[%emt 0:00:14]} 13. Qc3 {[%emt 0:01:25]} Nxd3+ {[%emt 0:01:53]} 14. cxd3 {[%emt 0:00:11]} Re8 {[%emt 0:01:52]} 15. O-O {[%emt 0:00:26]} Bg4 {[%emt 0:04:37]} 16. Ne1 {[%emt 0:03:27]} Rad8 {[%emt 0:08:23]} 17. Nc2 {[%emt 0:04:42]} h5 {[%emt 0:01:31]} 18. f3 {[%emt 0:01:19]} h4 {[%emt 0:04:15]} 19. Ne2 {[%emt 0:02:22]} Bc8 {[%emt 0:00:06]} 20. h3 {[%emt 0:00:58]} b6 {[%emt 0:05:07]} 21. Rad1 {[%emt 0:21:01]} c5 {[%emt 0:12:16]} 22. f4 {[%emt 0:10:35]} Ba6 {[%emt 0:04:11]} 23. Nb4 {[%emt 0:00:52]} Bb5 {[%emt 0:00:32]} 24. f5 {[%emt 0:00:57]} Qe7 {[%emt 0:20:01]} 25. Nd5 {[%emt 0:01:56]} Nxd5 {[%emt 0:00:03]} 26. exd5 {[%emt 0:00:07]} Qg5 {[%emt 0:00:04]} 27. fxg6 {[%emt 0:17:17]} Kxg6 {[%emt 0:11:51]} 28. Rf3 {[%emt 0:03:28]} Rxd5 {[%emt 0:02:29]} 29. Rdf1 {[%emt 0:03:08]} Rd7 {[%emt 0:01:09]} 30. Kh2 {[%emt 0:11:24]} Bc6 {[%emt 0:03:12]} 31. R3f2 {[%emt 0:00:02]} Red8 {[%emt 0:01:35]} 32. Qc4 {[%emt 0:01:13]} Bd5 {[%emt 0:01:06]} 33. Qa4 {[%emt 0:00:02]} Be6 {[%emt 0:02:15]} 34. Nc3 {[%emt 0:01:50]} f5 {[%emt 0:02:45]} 35. Rf3 {[%emt 0:01:47]} a5 {[%emt 0:04:57]} 36. Qb5 {[%emt 0:01:48]} Rd6 {[%emt 0:00:07]} 37. R1f2 {[%emt 0:00:28]} Bd7 {[%emt 0:01:01]} 38. Qb3 {[%emt 0:00:03]} Be6 {[%emt 0:00:28]} 39. Qb5 {[%emt 0:00:41]} Bd7 {[%emt 0:00:06]} 40. Qb3 {[%emt 0:00:30]} Be6 {[%emt 0:00:03]} 41. Qb5 {[%emt 0:00:31]} 1/2-1/2

[Event "21st Dubai Open 2019"]
[Site "Dubai"]
[Date "2019.04.08"]
[Round "8.36"]
[White "Mendonca, Leon Luke"]
[Black "Franco Valencia, Angela"]
[Result "1/2-1/2"]
[ECO "A45"]
[WhiteElo "2427"]
[BlackElo "2141"]
[Annotator "NA"]
[PlyCount "71"]
[EventDate "2019.04.01"]
[EventType "swiss"]
[EventCountry "UAE"]
[SourceTitle "playchess.com"]
[Source "ChessBase"]
[SourceQuality "1"]
[TimeControl "5400+30"]

1. d4 {[%emt 0:00:00]} Nf6 {[%emt 0:01:24]} 2. Bg5 {[%emt 0:00:01]} c5 {[%emt 0:00:27]} 3. Bxf6 {[%emt 0:03:48]} exf6 {[%emt 0:03:45]} 4. dxc5 {[%emt 0:00:53]} Bxc5 {[%emt 0:00:16]} 5. e3 {[%emt 0:00:46]} O-O {[%emt 0:05:55]} (5... d5 6. Nc3 Be6 7. Bd3 Nc6 8. Nge2 O-O 9. O-O Qd7 10. Nd4 Nxd4 11. exd4 Bd6 {½-½ (36) Vitiugov,N (2719)-Cheparinov,I (2709) St Petersburg 2018}) 6. Nd2 {[%emt 0:03:18] A45: Trompowsky Attack} d5 {[%emt 0:03:50]} 7. Nb3 {[%emt 0:02:39]} Bb6 {[%emt 0:00:34]} 8. Nf3 {[%emt 0:00:29]} Nc6 {[%emt 0:01:06]} 9. Be2 {[%emt 0:01:07]} Re8 $146 {[%emt 0:05:40]} ({Predecessor:} 9... Bf5 10. c3 Ne5 11. Nbd4 Be4 {½-½ (28) Ludwig,J (2379)-Rohan,A (2390) Charlotte 2018}) 10. O-O {[%emt 0:01:14]} Bg4 {[%emt 0:00:35]} 11. c3 {[%emt 0:00:50]} Rc8 {[%emt 0:01:28]} 12. Qd2 {[%emt 0:03:56]} a6 {[%emt 0:10:21]} 13. Rfe1 {[%emt 0:18:02]} Qe7 {[%emt 0:09:49]} 14. Rad1 {[%emt 0:06:20]} Red8 {[%emt 0:02:33]} 15. Nfd4 {[%emt 0:02:59]} Be6 {[%emt 0:02:58]} 16. Nxc6 {[%emt 0:03:36]} bxc6 {[%emt 0:02:43]} 17. Qc2 {[%emt 0:01:02]} a5 {[%emt 0:01:04]} 18. c4 {[%emt 0:01:47]} c5 {[%emt 0:06:23]} 19. cxd5 {[%emt 0:06:09]} Bxd5 {[%emt 0:01:12]} 20. Nd2 {[%emt 0:00:41]} g6 {[%emt 0:05:13]} 21. Bf3 {[%emt 0:15:47]} Be6 {[%emt 0:00:23]} 22. Nc4 {[%emt 0:03:07]} Bc7 {[%emt 0:01:10]} 23. g3 {[%emt 0:00:49]} h5 {[%emt 0:00:27]} 24. Qc3 {[%emt 0:02:04]} a4 {[%emt 0:03:49]} 25. Qc2 {[%emt 0:10:29]} h4 {[%emt 0:02:40]} 26. Qxa4 {[%emt 0:01:27]} hxg3 {[%emt 0:00:24]} 27. hxg3 {[%emt 0:01:33]} Kg7 {[%emt 0:00:35]} 28. Rxd8 {[%emt 0:01:33]} Rxd8 $14 {[%emt 0:00:23]} 29. b3 {[%emt 0:00:49]} Rh8 {[%emt 0:06:27]} 30. Rd1 {[%emt 0:01:34]} Bg4 {[%emt 0:05:27]} 31. Qc6 {[%emt 0:02:35]} Qe6 {[%emt 0:00:53]} 32. Rd2 {[%emt 0:00:57]} Qf5 {[%emt 0:08:22]} 33. Bxg4 {[%emt 0:01:21]} Qxg4 {[%emt 0:00:04]} 34. Nd6 {[%emt 0:02:04]} Bxd6 {[%emt 0:00:57]} 35. Rxd6 {[%emt 0:00:10]} Qe2 {[%emt 0:00:04]} 36. g4 {[%emt 0:01:06]} 1/2-1/2

[Event "21st Dubai Open 2019"]
[Site "Dubai"]
[Date "2019.04.08"]
[Round "8.37"]
[White "Thrish, Karthik"]
[Black "Akash G"]
[Result "0-1"]
[ECO "A05"]
[WhiteElo "2096"]
[BlackElo "2414"]
[Annotator "NA"]
[PlyCount "88"]
[EventDate "2019.04.01"]
[EventType "swiss"]
[EventCountry "UAE"]
[SourceTitle "playchess.com"]
[Source "ChessBase"]
[SourceQuality "1"]
[TimeControl "5400+30"]

1. Nf3 {[%emt 0:00:00]} Nf6 {[%emt 0:00:00]} 2. c4 {[%emt 0:00:00]} d6 {[%emt 0:00:18]} 3. d4 {[%emt 0:00:00]} g6 {[%emt 0:00:16]} 4. Nc3 {[%emt 0:00:01]} Bg7 {[%emt 0:00:08]} 5. e4 {[%emt 0:00:03]} O-O {[%emt 0:00:13]} 6. h3 {[%emt 0:00:02]} e5 {[%emt 0:00:29]} 7. dxe5 {[%emt 0:00:00]} dxe5 {[%emt 0:05:02]} 8. Be3 {[%emt 0:01:01]} Nbd7 {[%emt 0:05:41]} 9. Be2 {[%emt 0:05:23]} Nh5 {[%emt 0:01:53] E92: King's Indian: Classical: 6 Be2 e5: 7 dxe5, 7 Be3 and Petrosian System without 7...Nbd7} (9... Qe7 10. O-O c6 11. Qc2 Nh5 12. Rfe1 Nf4 13. Bf1 Qf6 14. Kh2 Re8 15. Ne2 Ne6 16. c5 Qe7 17. b4 a5 18. a3 {½-½ (18) Fedorchuk,S (2641)-Pavlov,S (2485) Minsk 2014}) 10. Bg5 $146 {[%emt 0:03:14]} ({Predecessor:} 10. g3 c6 11. Nd2 Nhf6 12. c5 Qe7 13. b4 Rd8 14. Qb1 {½-½ (14) Kourousis,E (2380)-Iwanow,A (2288) Brno 2014}) 10... Bf6 {[%emt 0:02:42]} 11. Bh6 {[%emt 0:03:07]} Re8 12. O-O c6 {[%emt 0:06:17]} 13. Qd2 {[%emt 0:05:52]} Qc7 {[%emt 0:04:39]} 14. Rfd1 {[%emt 0:07:24]} Nf4 {[%emt 0:05:01]} 15. Bf1 {[%emt 0:00:29]} Ne6 {[%emt 0:07:18]} 16. Be3 {[%emt 0:04:30]} a5 {[%emt 0:04:21]} 17. Rac1 {[%emt 0:04:19]} Ndc5 {[%emt 0:09:25]} 18. Qc2 {[%emt 0:10:11]} b6 {[%emt 0:05:39]} 19. b3 {[%emt 0:04:20]} Bb7 {[%emt 0:07:55]} 20. a3 {[%emt 0:01:14]} a4 {[%emt 0:01:37]} 21. b4 {[%emt 0:13:42]} Nb3 $11 {[%emt 0:00:26]} 22. Nxa4 {[%emt 0:00:24]} Nxc1 {[%emt 0:07:36]} 23. Bxb6 {[%emt 0:00:42]} Qb8 {[%emt 0:00:10]} 24. Rxc1 {[%emt 0:02:19]} Bc8 {[%emt 0:00:07]} 25. c5 {[%emt 0:08:47]} Nd4 {[%emt 0:03:52]} 26. Nxd4 {[%emt 0:04:41]} exd4 {[%emt 0:00:04]} 27. Ba5 {[%emt 0:02:03]} Bd8 {[%emt 0:02:46]} 28. Bxd8 {[%emt 0:03:58]} Rxd8 {[%emt 0:00:05]} 29. Nb6 {[%emt 0:00:15]} Rxa3 {[%emt 0:02:09]} 30. Qb2 {[%emt 0:00:07]} Ra7 {[%emt 0:05:59]} 31. Rd1 {[%emt 0:00:09]} Qe5 {[%emt 0:07:04]} 32. Nxc8 {[%emt 0:07:29]} Rxc8 {[%emt 0:00:07]} 33. Rxd4 {[%emt 0:00:05]} Rd7 {[%emt 0:01:01]} 34. Rd2 {[%emt 0:00:10]} Qxb2 {[%emt 0:00:49]} 35. Rxb2 {[%emt 0:00:01]} Rb8 {[%emt 0:03:08]} 36. f3 {[%emt 0:02:53]} Rd1 {[%emt 0:01:25]} 37. Kf2 {[%emt 0:05:57]} Rc1 {[%emt 0:00:05]} 38. Bd3 {[%emt 0:00:04]} Rxc5 {[%emt 0:00:49]} 39. Ke3 {[%emt 0:00:05]} Rc3 {[%emt 0:01:37]} 40. Kd4 {[%emt 0:01:25]} Rc1 {[%emt 0:00:24]} 41. Bc2 {[%emt 0:02:16]} c5+ {[%emt 0:00:27]} 42. Ke5 {[%emt 0:01:05]} cxb4 {[%emt 0:00:46]} 43. Kf6 {[%emt 0:00:38]} Rb6+ {[%emt 0:00:15]} 44. Kg5 {[%emt 0:00:11]} Kg7 {[%emt 0:00:21]} 0-1

[Event "21st Dubai Open 2019"]
[Site "Dubai"]
[Date "2019.04.08"]
[Round "8.38"]
[White "Manush Shah"]
[Black "Sultan, Ibrahim"]
[Result "1-0"]
[ECO "D30"]
[WhiteElo "2405"]
[BlackElo "2121"]
[Annotator "NA"]
[PlyCount "105"]
[EventDate "2019.04.01"]
[EventType "swiss"]
[EventCountry "UAE"]
[SourceTitle "playchess.com"]
[Source "ChessBase"]
[SourceQuality "1"]
[TimeControl "5400+30"]

1. d4 {[%emt 0:07:22]} d5 {[%emt 0:00:00]} 2. c4 {[%emt 0:00:11]} e6 {[%emt 0:00:00]} 3. Nf3 {[%emt 0:00:10]} Nf6 {[%emt 0:00:00]} 4. e3 {[%emt 0:00:08]} c6 {[%emt 0:00:49]} 5. b3 {[%emt 0:00:08]} Bb4+ {[%emt 0:00:16]} (5... Bd6 6. Bb2 O-O 7. Bd3 Nbd7 8. O-O b6 9. Nbd2 Bb7 10. Ne5 c5 11. cxd5 exd5 12. f4 Re8 13. Qf3 cxd4 14. exd4 {½-½ (63) Riazantsev,A (2649)-Timofeev,A (2589) St Petersburg 2018}) 6. Nbd2 {[%emt 0:00:34] D30: Queen's Gambit Declined: Systems without Nc3} Ne4 {[%emt 0:00:11]} 7. Bd3 {[%emt 0:02:16]} f5 {[%emt 0:00:30]} 8. O-O {[%emt 0:01:28]} Nd7 {[%emt 0:00:06]} 9. a3 {[%emt 0:01:07]} Ba5 {[%emt 0:00:26]} 10. Bb2 {[%emt 0:04:19]} O-O {[%emt 0:00:06]} 11. b4 {[%emt 0:01:57]} Bc7 {[%emt 0:02:38]} 12. Qc2 {[%emt 0:09:58]} Rf6 {[%emt 0:00:54]} 13. Ne5 {[%emt 0:06:28]} Rh6 $146 {[%emt 0:36:07]} 14. f4 {[%emt 0:14:25]} Nxd2 {[%emt 0:01:03]} 15. Qxd2 {[%emt 0:01:49]} Nxe5 {[%emt 0:00:05]} 16. fxe5 {[%emt 0:00:21]} dxc4 {[%emt 0:01:47]} 17. Bxc4 {[%emt 0:00:35]} Bxe5 {[%emt 0:00:26]} 18. g3 {[%emt 0:04:46]} g6 {[%emt 0:31:12]} 19. e4 {[%emt 0:05:17]} Rh5 {[%emt 0:09:40]} 20. exf5 {[%emt 0:05:34]} gxf5 {[%emt 0:03:18]} 21. Qe3 {[%emt 0:02:12]} Bg7 {[%emt 0:00:43]} 22. Bxe6+ {[%emt 0:00:33]} Bxe6 {[%emt 0:00:06]} 23. Qxe6+ {[%emt 0:00:07]} Kh8 {[%emt 0:00:02]} 24. Rf4 $11 {[%emt 0:01:59]} Qb6 {[%emt 0:05:22]} 25. Re1 {[%emt 0:02:49]} Rf8 {[%emt 0:01:36] [#]} 26. Qd7 $1 {[%emt 0:04:14]} Rh6 {[%emt 0:04:09]} 27. Rxf5 {[%emt 0:03:08]} Rhf6 {[%emt 0:01:02]} 28. Rxf6 {[%emt 0:01:31]} Bxf6 {[%emt 0:00:07]} 29. Qd6 {[%emt 0:03:16]} Bg7 {[%emt 0:01:02]} 30. Qc5 {[%emt 0:02:42]} Qd8 {[%emt 0:00:29]} 31. Re4 {[%emt 0:03:48]} a6 {[%emt 0:00:46]} 32. Bc3 {[%emt 0:02:03]} Qd7 {[%emt 0:00:18]} 33. d5 {[%emt 0:02:08]} Qf5 {[%emt 0:00:19]} 34. Bxg7+ {[%emt 0:00:30]} Kxg7 {[%emt 0:00:02]} 35. Qd4+ {[%emt 0:00:13]} Qf6 {[%emt 0:01:19]} 36. Re7+ {[%emt 0:00:27]} Kg8 {[%emt 0:00:23]} 37. Qxf6 {[%emt 0:00:42]} Rxf6 {[%emt 0:00:01]} 38. dxc6 {[%emt 0:01:16]} bxc6 {[%emt 0:00:26]} 39. Ra7 {[%emt 0:00:08]} Rd6 {[%emt 0:00:26]} 40. Rxa6 {[%emt 0:00:07]} Kf7 {[%emt 0:00:10]} 41. Kg2 {[%emt 0:00:54]} Rd2+ {[%emt 0:00:26]} 42. Kh3 {[%emt 0:01:15]} Rc2 {[%emt 0:00:05]} 43. a4 {[%emt 0:00:48]} Rc4 {[%emt 0:00:22]} 44. b5 {[%emt 0:00:26]} cxb5 {[%emt 0:00:05]} 45. axb5 {[%emt 0:00:03]} Rb4 {[%emt 0:00:07]} 46. Rb6 {[%emt 0:00:18]} Kg7 {[%emt 0:00:16]} 47. g4 {[%emt 0:00:12]} h6 {[%emt 0:00:22]} 48. Kg3 {[%emt 0:00:26]} Rb2 {[%emt 0:00:11]} 49. h4 {[%emt 0:00:42]} Rb4 {[%emt 0:00:06]} 50. h5 {[%emt 0:00:03]} Rb1 {[%emt 0:01:16]} 51. Rg6+ {[%emt 0:00:07]} Kh7 {[%emt 0:00:22]} 52. b6 {[%emt 0:00:06]} Rb4 {[%emt 0:00:06]} 53. Kf3 {[%emt 0:00:10]} 1-0

[Event "21st Dubai Open 2019"]
[Site "Dubai"]
[Date "2019.04.09"]
[Round "9.2"]
[White "Kuzubov, Yuriy"]
[Black "Iturrizaga Bonelli, Eduardo"]
[Result "1/2-1/2"]
[ECO "A05"]
[WhiteElo "2653"]
[BlackElo "2633"]
[Annotator "ChessBase"]
[PlyCount "32"]
[EventDate "2019.04.01"]
[EventType "swiss"]
[EventCountry "UAE"]
[SourceTitle "playchess.com"]
[Source "ChessBase"]
[SourceQuality "1"]
[TimeControl "5400+30"]

1. Nf3 {[%emt 0:00:00]} Nf6 {[%emt 0:00:00]} 2. c4 {[%emt 0:00:00]} b6 {[%emt 0:00:25]} 3. Nc3 {[%emt 0:01:02]} Bb7 {[%emt 0:00:51]} 4. d4 {[%emt 0:00:06]} e6 {[%emt 0:00:31]} 5. a3 {[%emt 0:00:06]} d5 {[%emt 0:01:42]} 6. Bg5 {[%emt 0:00:07]} Be7 {[%emt 0:00:04]} 7. e3 {[%emt 0:00:45]} O-O {[%emt 0:00:29]} 8. Rc1 {[%emt 0:00:37]} Nbd7 {[%emt 0:16:41]} 9. cxd5 {[%emt 0:01:56]} exd5 {[%emt 0:00:12]} 10. Be2 {[%emt 0:14:00]} c5 {[%emt 0:11:53]} 11. O-O {[%emt 0:00:58]} Rc8 {[%emt 0:23:31]} 12. dxc5 {[%emt 0:17:24]} bxc5 {[%emt 0:00:26]} 13. Qb3 {[%emt 0:00:54]} Qb6 {[%emt 0:11:36]} 14. Qxb6 {[%emt 0:01:10]} Nxb6 {[%emt 0:00:21]} 15. Rfd1 {[%emt 0:10:01]} Rfd8 {[%emt 0:01:00]} 16. h3 {[%emt 0:01:34]} Kf8 {[%emt 0:07:08]} 1/2-1/2